Cogmind - Beta 15 @@@ ROGUE MODE // 2025.08.03 @ 14:33:38 Player: FrigidRock Result: Destroyed by H-55 Commando with Gauss Rifle Performance ------------- Evolutions (2) 1000 Regions Visited (8) 1600 Robots Destroyed (50) 250 Value Destroyed (780) 780 Prototype IDs (2) 40 Alien Tech Used (0) 0 Bonus (200) 200 TOTAL SCORE: 3870 Bonus ------- Entered Garrisons 200 Cogmind --------- Core Integrity 0/550 Matter 183/300 Energy 98/100 System Corruption 1% Temperature Cool (0) Movement Core (50) Location -8/Garrison Parts ------- > --- POWER (1) -------- (None) > --- PROPULSION (4) --- (None) > --- UTILITY (4) ------ Hacking Suite > --- WEAPON (2) ------- (None) > --- INVENTORY (5) ---- Humpback Shock Rifle Peak State ------------ > --- POWER ------------ Heavy Ion Engine > --- PROPULSION ------- Improved Flight Unit Improved Flight Unit Improved Flight Unit > --- UTILITY ---------- Targeting Computer Hacking Suite > --- WEAPON ----------- Particle Gun Heavy Battle Rifle > --- INVENTORY -------- Ion Engine Heavy Ion Engine Large Storage Unit High-capacity Storage Unit Improved Light Cannon [Rating: 22] Favorites ----------- Power Heavy Ion Engine Engine Heavy Ion Engine Propulsion Aluminum Leg Treads Light Treads Leg Aluminum Leg Wheel Wheel Flight Unit Improved Flight Unit Utility Targeting Computer Processor Targeting Computer Hackware Hacking Suite Weapon Small Laser Energy Gun Small Laser Energy Cannon Particle Cannon Ballistic Gun Heavy Battle Rifle Ballistic Cannon Improved Light Cannon Launcher Rocket Launcher Slashing Weapon Blade Saw Build | -11 -10 -10 -9 -9 -9 -8 -8 -8 ------- Run | Yrd Mat Min Mat Min Exi Min Mat Gar Slots Evolved 4 | . . . 2 . . . 2 . Power . | . . . . . . . . . Propulsion 2 | . . . 1 . . . 1 . Utility 2 | . . . 1 . . . 1 . Weapon . | . . . . . . . . . Parts Attached 32 | 5 3 1 15 . 1 2 1 4 Power 7 | 1 2 . 3 . 1 . . . Engine 7 | 1 2 . 3 . 1 . . . Core . | . . . . . . . . . Reactor . | . . . . . . . . . Propulsion 13 | 2 . . 6 . . 2 1 2 Treads 2 | . . . . . . . . 2 Leg 4 | 2 . . 2 . . . . . Wheel 1 | . . . 1 . . . . . Hover . | . . . . . . . . . Flight 6 | . . . 3 . . 2 1 . Utility 2 | . 1 . 1 . . . . . Device . | . . . . . . . . . Storage . | . . . . . . . . . Processor 1 | . 1 . . . . . . . Hackware 1 | . . . 1 . . . . . Protection . | . . . . . . . . . Artifact . | . . . . . . . . . Weapon 10 | 2 . 1 5 . . . . 2 Energy Gun 4 | 2 . . 1 . . . . 1 Energy Cannon 2 | . . . 2 . . . . . Ballistic Gun 1 | . . 1 . . . . . . Ballistic Cannon 1 | . . . 1 . . . . . Launcher 1 | . . . 1 . . . . . Special Weapon . | . . . . . . . . . Impact Weapon . | . . . . . . . . . Slashing Weapon 1 | . . . . . . . . 1 Piercing Weapon . | . . . . . . . . . Special Melee Weapon . | . . . . . . . . . Unidentified Prototypes 2 | . . . 2 . . . . . Parts Lost 15 | . . . 3 . . . . 12 Power 2 | . . . 1 . . . . 1 Propulsion 8 | . . . 2 . . . . 6 Utility 1 | . . . . . . . . 1 Weapon 4 | . . . . . . . . 4 Highest Loss Streak 11 | . . . 1 . . . . 11 To Critical Strikes . | . . . . . . . . . Average Backups 3 | . 1 3 4 5 4 3 4 2 Power . | . . . . 1 . . . . Propulsion . | . . . . . . . 1 . Utility 1 | . . 2 1 1 1 1 1 1 Weapon 1 | . . 1 2 3 3 2 2 1 Tool/Special . | . . . . . . . . . Unused Backups 9 | . . . 5 . 1 . . 3 Power 2 | . . . 1 . . . . 1 Propulsion . | . . . . . . . . . Utility 4 | . . . 2 . 1 . . 1 Weapon 3 | . . . 2 . . . . 1 Tool/Special . | . . . . . . . . . Average Slot Usage (%) 68 | . 77 85 71 55 53 75 67 40 Engine 10 | . 14 14 10 11 9 11 9 5 Leg 13 | . 28 28 14 . . . . . Flight 9 | . . . 5 22 22 32 31 14 Processor 10 | . 7 14 11 11 11 11 9 3 Hackware 7 | . . . 10 11 11 11 9 9 Energy Gun 9 | . 27 20 8 . . . . . Ballistic Gun 4 | . . 7 8 . . . . . Launcher 1 | . . . . . . 10 9 1 Peak Build Rating 22 | 5 6 9 22 14 14 18 17 17 Average Rating 11 | 3 5 7 13 14 13 16 16 9 On Entrance 10 | . 5 6 9 14 14 13 16 17 Naked Turns . | . . . . . . . . . Heaviest Build 16 | 5 7 10 15 8 8 12 12 16 Greatest Support 40 | 20 20 20 20 10 10 13 16 40 Greatest Overweight (x) 4 | . . . 4 . . . . 3 Average Overweight (x) . | . . . . . . . . . Largest Inventory Capacity 5 | 5 5 5 5 5 5 5 5 5 Average Capacity 5 | 5 5 5 5 5 5 5 5 5 Most Carried 5 | 1 3 4 5 5 5 5 5 5 Average Carried 3 | . 1 3 4 5 4 4 4 3 Final Capacity 5 | 5 5 5 5 5 5 5 5 5 Final Carried 5 | 1 2 4 5 5 5 5 5 3 Class Distribution -------------------- 86% | Mutant 11% | Sprinter Dominant Class ---------------- Mutant | -10/Materials Mutant | -10/Mines Mutant | -9/Materials Mutant | -9/Mines Mutant | -9/Exiles Sprinter | -8/Mines Sprinter | -8/Materials Mutant | -8/Garrison Resources | -11 -10 -10 -9 -9 -9 -8 -8 -8 ----------- Run | Yrd Mat Min Mat Min Exi Min Mat Gar Matter Collected 726 | 153 133 4 300 . . 28 . 108 Remotely . | . . . . . . . . . Salvage Created 1047 | . 64 43 701 . . 46 . 193 Parts 80 | . 7 8 40 . . 11 . 14 Haulers Intercepted 3 | . . . 3 . . . . . Recyclers Shooed 1 | . . . 1 . . . . . Parts Field Recycled . | . . . . . . . . . Retrieved Matter . | . . . . . . . . . Parts Self-Destructed . | . . . . . . . . . Prevented . | . . . . . . . . . Kills | -11 -10 -10 -9 -9 -9 -8 -8 -8 ------- Run | Yrd Mat Min Mat Min Exi Min Mat Gar Combat Hostiles Destroyed 40 | . 5 3 19 . . 6 . 7 Melee 1 | . . . . . . . . 1 Guns 19 | . 5 3 11 . . . . . Cannons 5 | . . . . . . . . 5 AOE 15 | . . . 8 . . 6 . 1 Classes Destroyed 8 | . 1 . 6 . . . . 1 Worker 4 | . . . 3 . . 1 . . Hauler 3 | . . . 3 . . . . . Recycler 2 | . . . 2 . . . . . Operator 1 | . . . 1 . . . . . Swarmer 30 | . 5 3 13 . . 6 . 3 Grunt 6 | . . . 5 . . . . 1 Sentry 3 | . . . 1 . . . . 2 Programmer 1 | . . . . . . . . 1 Best Kill Streak 12 | . 3 2 12 . . 4 . 7 Combat Bots Only 7 | . 3 2 7 . . 4 . 7 Max Kills in Single Turn 3 | . 1 1 2 . . 3 . 2 Gunslinging . | . . . . . . . . . Exploded 3 | . . . 2 . . 3 . 1 Melee 1 | . . . . . . . . 1 Uniques/NPCs Destroyed . | . . . . . . . . . Combat | -11 -10 -10 -9 -9 -9 -8 -8 -8 -------- Run | Yrd Mat Min Mat Min Exi Min Mat Gar Hostile Shots Fired 251 | . 22 28 88 . . 7 . 106 Missed 69 | . 8 5 26 . . 4 . 26 Hits 182 | . 14 23 62 . . 3 . 80 Melee 3 | . . . . . . . . 3 Projectile 179 | . 14 23 62 . . 3 . 77 AOE 1 | . . . . . . . . 1 Critical Strikes 6 | . . . 1 . . 1 . 4 Damage Taken 2267 | . 120 178 665 . . 58 . 1246 Core 860 | . 16 51 200 . . 30 . 563 Absorbed by Shields 63 | . . . . . . . . 63 Core Remaining (%) 71 | 100 . 73 . . . 42 . . Volleys Fired 82 | . 10 10 42 . . 5 . 15 Largest 2 | . 2 2 2 . . 1 . 2 Hottest 136 | . 80 80 136 . . 33 . 124 Shots Fired 150 | . 20 20 76 . . 6 . 28 Gun 105 | . 20 20 63 . . . . 2 Cannon 31 | . . . 6 . . . . 25 Launcher 14 | . . . 7 . . 6 . 1 Special . | . . . . . . . . . Kinetic 45 | . . 1 32 . . . . 12 Thermal 91 | . 20 19 37 . . . . 15 Explosive 14 | . . . 7 . . 6 . 1 Electromagnetic . | . . . . . . . . . Robot Hit Streak 12 | . 4 5 12 . . 1 . 7 Robot Miss Streak 4 | . 4 4 4 . . 2 . 1 Penetration Max . | . . . . . . . . . Secondary Targets 2 | . . . 2 . . . . . Max Gunslinging Chain 1 | . . . 1 . . . . . Shots Hit Robots 98 | . 10 10 52 . . 1 . 25 Core Hits 57 | . 5 3 33 . . 6 . 10 Critical Kills . | . . . . . . . . . Critical Parts Destroyed . | . . . . . . . . . Critical Strikes 2 | . . . 1 . . . . 1 Burn 1 | . . . 1 . . . . . Blast 1 | . . . . . . . . 1 Melee Attacks 6 | . . . . . . . . 6 Impact . | . . . . . . . . . Slashing 6 | . . . . . . . . 6 Piercing . | . . . . . . . . . Sneak Attacks . | . . . . . . . . . Combat Hostiles . | . . . . . . . . . Follow-up Attacks . | . . . . . . . . . Damage Inflicted 2768 | . 119 119 1561 . . 309 . 660 Guns 1167 | . 119 119 893 . . . . 36 Cannons 540 | . . . 102 . . . . 438 Explosions 997 | . . . 566 . . 309 . 122 Melee 64 | . . . . . . . . 64 Ramming . | . . . . . . . . . Kinetic 788 | . . 19 562 . . . . 207 Thermal 919 | . 119 100 433 . . . . 267 Explosive 997 | . . . 566 . . 309 . 122 Electromagnetic . | . . . . . . . . . Impact . | . . . . . . . . . Slashing 64 | . . . . . . . . 64 Piercing . | . . . . . . . . . Highest Corruption 3 | . . . 3 3 3 3 . 1 Average Corruption 2 | . . . 2 3 3 3 . 1 Corruption Purged . | . . . . . . . . . Corruption Blocked . | . . . . . . . . . Effects 11 | . . . 7 2 1 1 . . Message Errors 1 | . . . 1 . . . . . Matter Fused 2 | . . . 1 1 . . . . Heat Flow Errors 2 | . . . 2 . . . . . Energy Discharges 4 | . . . 3 . 1 . . . Data Loss (major) 1 | . . . . 1 . . . . Misfires 1 | . . . . . . 1 . . Overload Shots . | . . . . . . . . . Overflow Damage 67 | . . . 18 . . 30 . 19 Projectiles . | . . . . . . . . . Explosions 67 | . . . 18 . . 30 . 19 Melee . | . . . . . . . . . Knockbacks 1 | . . . . . . . . 1 Impact . | . . . . . . . . . Kinetic 1 | . . . . . . . . 1 Secondary . | . . . . . . . . . Self-Inflicted Damage 84 | . . . 20 . . 24 . 40 Shots 4 | . . . 1 . . 2 . 1 Rammed 1 | . . . . . . . . 1 Targets Rammed 1 | . . . . . . . . 1 Kicked . | . . . . . . . . . Crushed . | . . . . . . . . . Highest Temperature 397 | . 108 108 242 . . 17 . 397 Average Temperature 101 | . 43 44 84 . . 8 . 223 Received Heat Transfer 516 | . . . 138 . . 36 . 342 Effects 2 | . . . . . . . . 2 Energy Bleed 1 | . . . . . . . . 1 Damage (minor) 1 | . . . . . . . . 1 Siege Activations . | . . . . . . . . . Martial Activations . | . . . . . . . . . Shielding Activations . | . . . . . . . . . Robots Disrupted . | . . . . . . . . . Combat Hostiles . | . . . . . . . . . Robots Corrupted . | . . . . . . . . . Combat Hostiles . | . . . . . . . . . Parts Fried . | . . . . . . . . . Impact Corruptions . | . . . . . . . . . Robots Melted . | . . . . . . . . . Combat Hostiles . | . . . . . . . . . Parts Melted 2 | . . . 1 . . . . 1 Heat Transferred 1933 | . 275 225 1049 . . . . 384 Parts Sabotaged . | . . . . . . . . . Parts Stolen . | . . . . . . . . . Parts Stripped . | . . . . . . . . . Power Chain Reactions . | . . . . . . . . . Alert | -11 -10 -10 -9 -9 -9 -8 -8 -8 ------- Run | Yrd Mat Min Mat Min Exi Min Mat Gar Maximum Alert Level 1 | . . . 1 . . . . . Low Security (%) 94 | 100 100 100 85 100 . 100 100 100 Level 1 5 | . . . 14 . . . . . Level 2 . | . . . . . . . . . Level 3 . | . . . . . . . . . Level 4 . | . . . . . . . . . Level 5 . | . . . . . . . . . High Security . | . . . . . . . . . Max Security . | . . . . . . . . . Peak Influence 328 | . 110 87 328 136 . 188 72 138 Initial 121 | . . 27 . 121 . . 72 46 Average 77 | . 53 35 93 121 . 111 72 81 Influence Increases 1230 | . 140 70 530 45 . 238 . 207 Destroy 0b10 Robot/C 800 | . 100 60 380 . . 120 . 140 Destroy 0b10 Robot/NC 50 | . . . 45 . . 5 . . Destroy Leader 126 | . 20 10 66 . . 20 . 10 Successful Hack 8 | . 5 . 3 . . . . . Disable Machine 45 | . . . 15 . . 30 . . Destroy Structure 81 | . . . 21 . . 48 . 12 Lose Combat Pursuer 120 | . 15 . . 45 . 15 . 45 Influence Decreases 1097 | . 70 140 218 251 106 50 116 146 Entered New Map 482 | . . 43 . 191 106 . 116 26 Time Decay 465 | . 70 97 188 60 . 50 . . Lost Part 150 | . . . 30 . . . . 120 Squads Dispatched 5 | . 2 . 2 . . . 1 . Investigation 2 | . 1 . . . . . 1 . Extermination . | . . . . . . . . . Reinforcement 3 | . 1 . 2 . . . . . Assault . | . . . . . . . . . Garrison . | . . . . . . . . . Intercept . | . . . . . . . . . Searches Triggered . | . . . . . . . . . Construction Impeded . | . . . . . . . . . Haulers Reinforced . | . . . . . . . . . Active Scanning Responses . | . . . . . . . . . Cargo Convoy Interrupts . | . . . . . . . . . Stealth | -11 -10 -10 -9 -9 -9 -8 -8 -8 --------- Run | Yrd Mat Min Mat Min Exi Min Mat Gar Distress Signals 2 | . . . 2 . . . . . Communications Jammed . | . . . . . . . . . Distress Signals . | . . . . . . . . . Times Spotted 64 | . 9 2 29 1 . 8 . 15 Peak Tracking Total 7 | . 6 2 7 3 . 4 . 7 Tactical Retreats 5 | . 1 . . 1 . 1 . 2 Traps | -11 -10 -10 -9 -9 -9 -8 -8 -8 ------- Run | Yrd Mat Min Mat Min Exi Min Mat Gar Traps Triggered 4 | . 1 . 1 . . . . 2 Indirectly . | . . . . . . . . . Trap Hack Attempts . | . . . . . . . . . Triggered . | . . . . . . . . . Disarmed . | . . . . . . . . . Reprogrammed . | . . . . . . . . . Reused . | . . . . . . . . . Traps Extracted . | . . . . . . . . . Installed . | . . . . . . . . . Triggered . | . . . . . . . . . Machines | -11 -10 -10 -9 -9 -9 -8 -8 -8 ---------- Run | Yrd Mat Min Mat Min Exi Min Mat Gar Machines Disabled 3 | . . . 1 . . 2 . . Max in Single Turn 1 | . . . 1 . . 1 . . Machines Repaired . | . . . . . . . . . Machines Dismantled . | . . . . . . . . . Machines Sabotaged . | . . . . . . . . . Overloaded Fab Kills . | . . . . . . . . . Hacking | -11 -10 -10 -9 -9 -9 -8 -8 -8 --------- Run | Yrd Mat Min Mat Min Exi Min Mat Gar Machines Accessed 6 | . 2 . 2 . . . 2 . Terminals 5 | . 2 . 2 . . . 1 . Fabricators . | . . . . . . . . . Repair Stations . | . . . . . . . . . Recycling Units . | . . . . . . . . . Scanalyzers . | . . . . . . . . . Garrison Access 1 | . . . . . . . 1 . Total Hacks 14 | . 2 . 7 . . . 5 . Successful 7 | . 2 . 3 . . . 2 . Failed 7 | . . . 4 . . . 3 . Catastrophic 1 | . . . 1 . . . . . Database Lockouts . | . . . . . . . . . Manual 12 | . 1 . 7 . . . 4 . Terminals 10 | . 2 . 7 . . . 1 . Fabricators . | . . . . . . . . . Repair Stations . | . . . . . . . . . Recycling Units . | . . . . . . . . . Scanalyzers . | . . . . . . . . . Garrison Access 4 | . . . . . . . 4 . Terminal Hacks 2 | . 1 . 1 . . . . . Branch Access Points 2 | . 1 . 1 . . . . . Fabricator Hacks . | . . . . . . . . . Repair Station Hacks . | . . . . . . . . . Recycling Unit Hacks . | . . . . . . . . . Scanalyzer . | . . . . . . . . . Garrison Access Hacks 1 | . . . . . . . 1 . Unlock Access 1 | . . . . . . . 1 . Unauthorized Hacks 4 | . 1 . 2 . . . 1 . Terminals 4 | . 1 . 2 . . . 1 . Botnet 4 | . 1 . 2 . . . 1 . Fabricators . | . . . . . . . . . Repair Stations . | . . . . . . . . . Recycling Units . | . . . . . . . . . Scanalyzers . | . . . . . . . . . Garrison Access . | . . . . . . . . . Data Cores Recovered . | . . . . . . . . . Used . | . . . . . . . . . Hacking Detections 3 | . . . 1 . . . 2 . Full Trace Events 1 | . . . . . . . 1 . Feedback Events . | . . . . . . . . . Feedback Blocked . | . . . . . . . . . Robot Schematics Acquired . | . . . . . . . . . Robots Built . | . . . . . . . . . Authchips . | . . . . . . . . . Time . | . . . . . . . . . Total Robot Build Rating . | . . . . . . . . . Part Schematics Acquired . | . . . . . . . . . Parts Built . | . . . . . . . . . Authchips . | . . . . . . . . . Time . | . . . . . . . . . Total Part Build Rating . | . . . . . . . . . Parts Repaired . | . . . . . . . . . Time . | . . . . . . . . . Parts Recycled . | . . . . . . . . . Recycled Matter . | . . . . . . . . . Retrieved Matter . | . . . . . . . . . Retrieved Components . | . . . . . . . . . Parts Scanalyzed . | . . . . . . . . . Part Schematics Acquired . | . . . . . . . . . Parts Damaged . | . . . . . . . . . Bothacking | -11 -10 -10 -9 -9 -9 -8 -8 -8 ------------ Run | Yrd Mat Min Mat Min Exi Min Mat Gar Used RIF Installer . | . . . . . . . . . Robots Hacked . | . . . . . . . . . Non-combat . | . . . . . . . . . Combat . | . . . . . . . . . Robot Hacks Applied . | . . . . . . . . . Relay Couplers Released 4 | . . . . . . . . 4 Programmers 4 | . . . . . . . . 4 Fabnet Peak Effective % . | . . . . . . . . . Robots Rewired . | . . . . . . . . . Allies Hacked . | . . . . . . . . . Hacks Repelled . | . . . . . . . . . Allies | -11 -10 -10 -9 -9 -9 -8 -8 -8 -------- Run | Yrd Mat Min Mat Min Exi Min Mat Gar Total Allies 2 | . . . . 2 . . . . Largest Group 2 | . . . . 2 2 . . . Highest-Rated Group 49 | . . . . 49 49 . . . Highest-Rated Ally 31 | . . . . 31 31 . . . Total Orders . | . . . . . . . . . Ally Attacks . | . . . . . . . . . Total Damage . | . . . . . . . . . Kills . | . . . . . . . . . Allies Corrupted . | . . . . . . . . . Allies Melted . | . . . . . . . . . Intel | -11 -10 -10 -9 -9 -9 -8 -8 -8 ------- Run | Yrd Mat Min Mat Min Exi Min Mat Gar Active Infowar (turns) . | . . . . . . . . . Robot Analysis Total . | . . . . . . . . . Derelict Logs Recovered 2 | . . 1 . 1 . . . . Drone Launches . | . . . . . . . . . Drone Recoveries . | . . . . . . . . . Exploration | -11 -10 -10 -9 -9 -9 -8 -8 -8 ------------- Run | Yrd Mat Min Mat Min Exi Min Mat Gar Turns Passed 1600 | 47 200 256 574 122 92 110 9 190 Spaces Moved 1748 | 35 134 186 489 188 222 275 21 198 Core 79 | 4 . . 3 . . . . 72 Treads 10 | . . . . . . . . 10 Legs 577 | 31 134 186 226 . . . . . Wheels 29 | . . . 29 . . . . . Hover . | . . . . . . . . . Flight 1053 | . . . 231 188 222 275 21 116 Fastest Speed 29 | 50 120 120 37 37 37 32 29 29 Average Speed 66 | 112 120 120 83 37 37 32 31 44 Slowest Speed 250 | 120 120 120 250 37 37 37 32 200 Overloaded Moves . | . . . . . . . . . Propulsion Burnouts . | . . . . . . . . . Robots Hopped 7 | . . . 5 . . 2 . . Potential Cave-ins . | . . . . . . . . . Cave-ins Triggered . | . . . . . . . . . Exploration Rate (%) 38 | 4 44 40 47 48 55 70 4 30 Regions Visited 8 Branch Regions 4 Pre-discovered Areas 1 | . . . . 1 . . . . Known Exits Taken 4 | . 1 1 1 . . . 1 . Unknown Exits Taken 4 | 1 . . . 1 1 1 . . Scrap Searched . | . . . . . . . . . Spaces Dug 14 | . . . . . . 14 . . Terrain Destroyed 105 | . . . 28 . . 69 . 8 Melee . | . . . . . . . . . Projectile 1 | . . . 1 . . . . . AOE 104 | . . . 27 . . 69 . 8 Terrain Rammed . | . . . . . . . . . Walls Destroyed . | . . . . . . . . . Machines Disabled . | . . . . . . . . . Actions | -11 -10 -10 -9 -9 -9 -8 -8 -8 --------- Run | Yrd Mat Min Mat Min Exi Min Mat Gar Total 2011 | 40 153 199 579 239 232 288 22 259 Wait 76 | . 1 . 10 52 7 6 . . Move 1726 | 34 133 185 478 187 221 270 20 198 Hop 7 | . . . 5 . . 2 . . Pick Up 16 | 1 2 2 7 . 1 1 1 1 Fast Attach 25 | 5 1 1 11 . . 2 . 5 Attach 12 | . 2 . 4 . 1 1 1 3 Detach 9 | . 1 . 6 . . . . 2 Swap 3 | . 1 . 1 . . . . 1 Drop 23 | . 2 1 15 . 2 1 . 2 Fire 82 | . 10 10 42 . . 5 . 15 Melee 6 | . . . . . . . . 6 Ram 1 | . . . . . . . . 1 Kick . | . . . . . . . . . Crush . | . . . . . . . . . Escape Stasis 25 | . . . . . . . . 25 Rewire . | . . . . . . . . . Trap . | . . . . . . . . . Miscellaneous . | . . . . . . . . . Route ------- -11/Scrapyard -10/Materials (discovered 2 exits: *Mat / *Min) -10/Mines -9/Materials (discovered 4 exits: *Mat x2 / *Min / Sto) -9/Mines -9/Exiles (discovered 2 exits: [*Min x2]) -8/Mines (discovered 2 exits: *Mat x2) -8/Materials -8/Garrison History --------- Turn | Location | Event 17 | -11/Scrapyard | Discovered new exit (range 15) 48 | -11/Scrapyard | Entered Materials 191 | -10/Materials | Discovered new exit (range 12) 203 | -10/Materials | Identified exit to Mines 248 | -10/Materials | Entered Mines 312 | -10/Mines | Build established: Mutant 355 | -10/Mines | A weapon hastily lodged in a ceiling crevice suddenly fell to the ground 399 | -10/Mines | Identified exit to Materials 504 | -10/Mines | Entered Materials 504 | -9/Materials | Evolved 2 slots: Propulsion x1, Utility x1 733 | -9/Materials | Discovered new exit (range 16) 840 | -9/Materials | Destroyed 7 combat bots 1031 | -9/Materials | Discovered new exit (range 8) 1032 | -9/Materials | Identified exit to Mines 1032 | -9/Materials | Identified exit to Storage 1078 | -9/Materials | Entered Mines 1085 | -9/Mines | Found a hidden stash of uninstalled traps 1088 | -9/Mines | Learned location of Zion (-6) 1107 | -9/Mines | Met a Derelict bent on vengeance 1161 | -9/Mines | Deemed a non-threat by the Exiles lab entrance 1162 | -9/Mines | Discovered new exit (range 5) 1200 | -9/Mines | Entered Exiles 1200 | -9/Exiles | Accompanied by 2 allies 1205 | -9/Exiles | Discovered new exit (range 15) 1210 | -9/Exiles | Met 8R-AWN 1216 | -9/Exiles | Met EX-HEX 1230 | -9/Exiles | Led the pair of lost Derelicts to a safe place 1251 | -9/Exiles | Met EX-BIN 1256 | -9/Exiles | Met EX-DEC 1289 | -9/Exiles | Discovered new exit (range 10) 1292 | -9/Exiles | Entered Mines 1301 | -8/Mines | Discovered new exit (range 12) 1303 | -8/Mines | Core integrity fell below 50% 1396 | -8/Mines | Discovered new exit (range 14) 1402 | -8/Mines | Entered Materials 1402 | -8/Materials | Evolved 2 slots: Propulsion x1, Utility x1 1411 | -8/Materials | Identified exit to Garrison 1411 | -8/Materials | Entered Garrison 1437 | -8/Garrison | Triggered checkpoint 1540 | -8/Garrison | Core integrity fell below 50% 1561 | -8/Garrison | Destroyed 7 combat bots 1565 | -8/Garrison | Triggered checkpoint 1570 | -8/Garrison | Core integrity fell below 20% 1596 | -8/Garrison | Lost 11 parts (1p5n1u4w) 1601 | -8/Garrison | Destroyed by H-55 Commando with Gauss Rifle Last Messages --------------- 01526_ Chain reaction triggered in Lgt. Nuclear Core. 01526_ C-17 Slicer destroyed. 01527_ Acquired 50 matter. 01528_ Acquired Lgt. Treads. 01529_ Overheating: Lgt. Treads damaged (-41). 01531_ Acquired Lgt. Treads. 01534_ Acquired Blade Saw. 01535_ ALERT: Dispatching investigation squad to Materials. 01537_ Lgt. Treads destroyed. 01540_ P-60 Hacker destroyed. 01559_ Lgt. Treads destroyed. 01563_ The unstable cave ceiling collapses. 01563_ Penetrated by Slug. 01565_ Beams of light sweep through the air. An alarm sounds. 01565_ Blade Saw destroyed. 01566_ Penetrated by Slug. 01567_ Acquired 58 matter. 01569_ Acquired Shock Rifle. 01569_ Penetrated by Slug. 01595_ Slug penetrates Wall. Map ----- +----------------------------------------------------+ | ?????# ?????????????????????????????????????????? | | ?????# ?????????????????????????????????????????? | | ?????# ?????????????????????????????????????????? | | ?????# ?????????????????????????????????????????? | | ?????# #????????????????????????????????????????? | | ""?"## ##???????????????????????????????????????? | | ? #???????????????????????????????????????? | | ? #???????????????????????????????????????? | | ? #???????????????????????????????????????? | | ?# #???????????????????????????????????????? | | ## ###?????????????????????????????????????? | | #?????????????????????????????????????? | | #?????????????????????????????????????? | | #?????????????????????????????????????? | | #?????????????????????????????????????? | | ## ###?????????????????????????????????????? | | ## ! ##########??????????????????????????????? | | ^!! #??????????????????????????????? | | ^= [ #??????????????????????????????? | | !%!!|####### #??????????????????????????????? | | #[%[!##????# #??????????????????????????????? | | #!%*! #????# #??????????????????????????????? | | ###?#*! ##????# #????????#####?????????????????? | | ????# ^"#?????# #????????# #??????#######????? | | ????## %"= ????# ########## ######## # #????? | | ?????# ####???# h ; @ * #??????? | | ?????# %#??????# h##### ######### ##### #????? | | ?????# ######## #???# #???????# #???# ##????? | | ?????# ##### #???????# ???## ##?????? | | ?????# #???????# "???####??????? | | ?????########### #######???????# "#????????????? | | ???????????????# #?????????????# #"#????????????? | | ???????????????# #?????????????# #?#????????????? | | ????############ #?????????????# #??????????????? | | ????""""""""""## #?????????????? ???????????????? | | ???#"""!!!!!!"## #?????????????? ???????????????? | | ???#"" ## ##############? ???????????????? | | ???#"! #? ???????????????? | | ???#"! #?"???????????????? | | ???#"! ############## #?#???????????????? | | ???#"! #????????????# #?????????????????? | | ???#"" #????????????#####?????????????????? | | ???#"""!!!!!!"#??????????????????????????????????? | | ???#""""""""""#??????????????????????????????????? | | ????###########??????????????????????????????????? | | ?????????????????????????????????????????????????? | | ?????????????????????????????????????????????????? | | ?????????????????????????????????????????????????? | | ?????????????????????????????????????????????????? | | ?????????????????????????????????????????????????? | +----------------------------------------------------+ Best States ------------- Heat Dissipation 31 Energy Generation 14 Energy Capacity 280 Matter Stores 300 Matter Capacity 300 Sight Range 16 Terrain Scan Density 10 Evasion (%) 64 Targeting Accuracy 5 Recoil Reduction 1 Offensive Hacking 10 Item Schematics ----------------- None Robot Schematics ------------------ None Fabricated ------------ Nothing Repaired ---------- Nothing Alien Tech Used ----------------- None Achievements -------------- None Challenges ------------ None Game ------ Seed RocketTransmissionBay Manual? 0 Play Time 00:20:51 Cumulative 307.4 hours Start 2025.08.03 @ 14:02:41 End 2025.08.03 @ 14:33:38 Sessions 1 Manual Loads 0 Difficulty Rogue Special Mode None Game No. 128 Rogue 57 Adventurer 68 Explorer 3 Win Type - Total 24 Types 16/1/1/4/1/0/0/0/0/1 Lore% 76 Gallery% 73 Achievement% 71 Wizard Run 0 Options --------- Layout 0 ASCII 0 Keyboard 0 Movement Numpad Keybinds 0 Fullscreen 1 Font 24/Smallcaps Map View 76x50 Zoom Use 0% Tactical HUD 1 Map Filters NONE Filters NONE Steam 1 RUN: d110b4dd-a39d-4412-be92-fe0340528799